fUSD/lending_fUSD_20240803
["ID","MTS","AMOUNT","RATE_DAILY","PERIOD"]
[333952920,1722647471110,-151.0,0.00016986,2]
[333952921,1722647471121,-500.0,0.00016986,2]
[333952922,1722647471132,-1648.14,0.00016986,2]
[333952923,1722647471143,-633.65,0.00016986,2]
[333952924,1722647471153,-772.72,0.00016986,2]
[333952925,1722647471164,-500.0,0.00016986,2]
[333952926,1722647471174,-2184.3,0.00016986,2]
[333952927,1722647471185,-710.47,0.00016986,2]
[333952928,1722647471195,-500.0,0.00016986,2]
[333952929,1722647471205,-6078.62,0.00016986,2]
[333952930,1722647471217,-3202.51,0.00016986,2]
[333952931,1722647471227,-1472.4,0.00016986,2]
[333952932,1722647471238,-1031.13,0.00016986,2]
[333952933,1722647471248,-906.39,0.00016986,2]
[333952934,1722647471258,-500.0,0.00016986,2]
[333952935,1722647471268,-1337.03,0.00016986,2]
[333952936,1722647471279,-500.0,0.00016986,2]
[333952937,1722647471289,-500.0,0.00016986,2]
[333952938,1722647471306,-500.0,0.00016986,2]
[333952939,1722647471316,-565.98,0.00016986,2]
[333952940,1722647471325,-9263.64,0.00016986,2]
[333952941,1722647471336,-1157.0,0.00016986,2]
[333952942,1722647471346,-952.39,0.00016986,2]
[333952943,1722647471356,-3020.59,0.00016986,2]
[333952944,1722647471367,-894.13,0.00016986,2]
[333952945,1722647471377,-2366.13,0.00016986,2]
[333952946,1722647471387,-500.0,0.00016986,2]
[333952947,1722647471397,-1873.68,0.00016986,2]
[333952948,1722647471407,-742.15,0.00016986,2]
[333952949,1722647471416,-5947.41,0.00016986,2]
[333952950,1722647471427,-1057.78,0.00016986,2]
[333952951,1722647471437,-500.0,0.00016986,2]
[333952952,1722647471447,-500.0,0.00016986,2]
[333952953,1722647471457,-500.0,0.00016986,2]
[333952954,1722647471468,-1311.05,0.00016986,2]
[333952955,1722647471478,-665.43,0.00016986,2]
[333952956,1722647471488,-507.04,0.00016986,2]
[333952957,1722647471498,-1090.99,0.00016986,2]
[333952958,1722647471508,-9588.19,0.00016986,2]
[333952959,1722647471518,-2382.09,0.00016986,2]
[333952960,1722647471528,-2628.5,0.00016986,2]
[333952961,1722647471538,-151.0,0.00016986,2]
[333952962,1722647471554,-151.0,0.00016986,2]
[333952963,1722647471564,-1947.62,0.00016986,2]
[333952964,1722647471574,-151.0,0.00016986,2]
[333952965,1722647471584,-500.0,0.00016986,2]
[333952966,1722647471594,-4884.78,0.00016986,2]
[333952967,1722647471604,-500.0,0.00016986,2]
[333952968,1722647471614,-7735.99,0.00016986,2]
[333952969,1722647471624,-22174.14,0.00016986,2]
[333952970,1722647471636,-151.0,0.00016986,2]
[333952971,1722647471648,-1016.1,0.00016986,2]
[333952972,1722647471657,-500.0,0.00016986,2]
[333952973,1722647471667,-151.0,0.00016986,2]
[333952974,1722647471678,-263.797674,0.00016986,2]
[333952975,1722647471688,-508.26,0.00016986,2]
[333952976,1722647471697,-500.0,0.00016986,2]
[333952977,1722647471707,-1531.54,0.00016986,2]
[333952978,1722647471717,-500.0,0.00016986,2]
[333952979,1722647471728,-728.04,0.00016986,2]
[333952980,1722647471738,-612.33,0.00016986,2]
[333952981,1722647471748,-1756.95,0.00016986,2]
[333952982,1722647471759,-843.99,0.00016986,2]
[333952983,1722647471769,-743.94,0.00016986,2]
[333952984,1722647471779,-988.78,0.00016986,2]
[333952985,1722647471790,-1772.04,0.00016986,2]
[333952986,1722647471814,-3808.8,0.00016986,2]
[333952987,1722647471825,-2021.14,0.00016986,2]
[333952988,1722647471835,-2603.71,0.00016986,2]
[333952989,1722647471845,-2856.51,0.00016986,2]
[333952990,1722647471855,-1372.0,0.00016986,2]
[333952991,1722647471866,-500.0,0.00016986,2]
[333952992,1722647471875,-500.0,0.00016986,2]
[333952993,1722647471886,-48780.42,0.00016986,2]
[333952994,1722647471896,-566.87,0.00016986,2]
[333952995,1722647471906,-4155.74,0.00016986,2]
[333952996,1722647471917,-500.0,0.00016986,2]
[333952997,1722647471928,-1663.34,0.00016986,2]
[333952998,1722647471939,-1052.41,0.00016986,2]
[333952999,1722647471949,-500.0,0.00016986,2]
[333953000,1722647471960,-1207.77,0.00016986,2]
[333953001,1722647471971,-7072.44,0.00016986,2]
[333953002,1722647471982,-929.39,0.00016986,2]
[333953003,1722647471994,-2742.69,0.00016986,2]
[333953004,1722647472005,-4332.36,0.00016986,2]
[333953005,1722647472015,-887.05,0.00016986,2]
[333953006,1722647472026,-500.0,0.00016986,2]
[333953007,1722647472036,-500.0,0.00016986,2]
[333953008,1722647472052,-1760.38,0.00016986,2]
[333953009,1722647472062,-5475.08,0.00016986,2]
[333953010,1722647472072,-500.0,0.00016986,2]
[333953011,1722647472083,-500.0,0.00016986,2]
[333953012,1722647472092,-1637.02,0.00016986,2]
[333953013,1722647472102,-614.91,0.00016986,2]
[333953014,1722647472113,-631.2,0.00016986,2]
[333953015,1722647472123,-500.0,0.00016986,2]
[333953016,1722647472133,-903.21,0.00016986,2]
[333953017,1722647472143,-500.0,0.00016986,2]
[333953018,1722647472153,-4306.09,0.00016986,2]
[333953019,1722647472164,-2338.13,0.00016986,2]
[333953020,1722647472174,-667.48,0.00016986,2]
[333953021,1722647472184,-500.0,0.00016986,2]
[333953022,1722647472194,-9901.93,0.00016986,2]
[333953023,1722647472204,-1994.04,0.00016986,2]
[333953024,1722647472214,-2033.83,0.00016986,2]
[333953025,1722647472224,-1335.35,0.00016986,2]
[333953026,1722647472235,-500.0,0.00016986,2]
[333953027,1722647472245,-500.0,0.00016986,2]
[333953028,1722647472255,-1950.1,0.00016986,2]
[333953029,1722647472265,-500.0,0.00016986,2]
[333953030,1722647472275,-1720.5,0.00016986,2]
[333953031,1722647472285,-500.0,0.00016986,2]
[333953032,1722647472298,-500.0,0.00016986,2]
[333953033,1722647472308,-500.0,0.00016986,2]
[333953034,1722647472319,-1718.62,0.00016986,2]
[333953035,1722647472329,-854.22,0.00016986,2]
[333953036,1722647472339,-1648.8,0.00016986,2]
[333953037,1722647472349,-1135.86,0.00016986,2]
[333953038,1722647472359,-719.52,0.00016986,2]
[333953039,1722647472369,-3935.16,0.00016986,2]
[333953040,1722647472379,-10273.1,0.00016986,2]
[333953041,1722647472390,-500.0,0.00016986,2]
[333953042,1722647472400,-7896.45,0.00016986,2]
[333953043,1722647472410,-7722.62,0.00016986,2]
[333953044,1722647472420,-500.0,0.00016986,2]
[333953045,1722647472431,-500.0,0.00016986,2]
[333953046,1722647472441,-2706.95,0.00016986,2]
[333953047,1722647472451,-857.34,0.00016986,2]
[333953048,1722647472461,-523.29,0.00016986,2]
[333953049,1722647472471,-1947.53,0.00016986,2]
[333953050,1722647472481,-1680.3,0.00016986,2]
[333953051,1722647472491,-500.0,0.00016986,2]
[333953052,1722647472501,-6248.02,0.00016986,2]
[333953053,1722647472510,-628.07,0.00016986,2]
[333953054,1722647472520,-1625.43,0.00016986,2]
[333953055,1722647472530,-500.0,0.00016986,2]
[333953056,1722647472539,-500.0,0.00016986,2]
[333953057,1722647472552,-1782.76,0.00016986,2]
[333953058,1722647472562,-500.0,0.00016986,2]
[333953059,1722647472572,-20746.37,0.00016986,2]
[333953060,1722647472583,-500.0,0.00016986,2]
[333953061,1722647472593,-500.0,0.00016986,2]
[333953062,1722647472603,-500.0,0.00016986,2]
[333953063,1722647472613,-1043.42,0.00016986,2]
[333953064,1722647472623,-500.0,0.00016986,2]
[333953065,1722647472634,-706.57,0.00016986,2]
[333953066,1722647472646,-3264.22,0.00016986,2]
[333953067,1722647472656,-5308.92,0.00016986,2]
[333953068,1722647472668,-3209.76,0.00016986,2]
[333953069,1722647472678,-1988.81,0.00016986,2]
[333953070,1722647472688,-1550.98,0.00016986,2]
[333953071,1722647472698,-5971.7,0.00016986,2]
[333953072,1722647472708,-851.65,0.00016986,2]
[333953073,1722647472718,-786.89,0.00016986,2]
[333953074,1722647472728,-2111.34,0.00016986,2]
[333953075,1722647472738,-1062.05,0.00016986,2]
[333953076,1722647472749,-2302.45,0.00016986,2]
[333953077,1722647472759,-3723.54,0.00016986,2]
[333953078,1722647472769,-6686.36,0.00016986,2]
[333953079,1722647472778,-1017.89,0.00016986,2]
[333953080,1722647472787,-5518.93,0.00016986,2]
[333953081,1722647472799,-1272.39,0.00016986,2]
[333953082,1722647472809,-600.54,0.00016986,2]
[333953083,1722647472819,-500.0,0.00016986,2]
[333953084,1722647472829,-2888.86,0.00016986,2]
[333953085,1722647472839,-1082.52,0.00016986,2]
[333953086,1722647472848,-1083.09,0.00016986,2]
[333953087,1722647472858,-646.87,0.00016986,2]
[333953088,1722647472868,-1849.2,0.00016986,2]
[333953089,1722647472877,-1014.75,0.00016986,2]
[333953090,1722647472886,-171.088627,0.00016986,2]
[333953091,1722647472896,-2150.3,0.00016986,2]
[333953092,1722647472905,-500.0,0.00016986,2]
[333953093,1722647472915,-519.69,0.00016986,2]
[333953094,1722647472925,-2462.05,0.00016986,2]
[333953095,1722647472935,-1759.0,0.00016986,2]
[333953096,1722647472945,-500.0,0.00016986,2]
[333953097,1722647472955,-500.0,0.00016986,2]
[333953098,1722647472965,-1615.04,0.00016986,2]
[333953099,1722647472974,-520.98,0.00016986,2]
[333953100,1722647472984,-1110.72,0.00016986,2]
[333953101,1722647472994,-1264.8,0.00016986,2]
[333953102,1722647473004,-886.01,0.00016986,2]
[333953103,1722647473014,-7400.75,0.00016986,2]
[333953104,1722647473024,-500.0,0.00016986,2]
[333953105,1722647473034,-500.0,0.00016986,2]
[333953106,1722647473047,-500.0,0.00016986,2]
[333953107,1722647473056,-500.0,0.00016986,2]
[333953108,1722647473066,-2845.5,0.00016986,2]
[333953109,1722647473076,-2203.49,0.00016986,2]
[333953110,1722647473086,-3328.86,0.00016986,2]
[333953111,1722647473096,-500.0,0.00016986,2]
[333953112,1722647473106,-1716.07,0.00016986,2]
[333953113,1722647473116,-2435.97,0.00016986,2]
[333953114,1722647473126,-735.27,0.00016986,2]
[333953115,1722647473136,-2656.61,0.00016986,2]
[333953116,1722647473145,-1037.83,0.00016986,2]
[333953117,1722647473155,-500.0,0.00016986,2]
[333953118,1722647473165,-972.16,0.00016986,2]
[333953119,1722647473174,-4132.54,0.00016986,2]
[333953120,1722647473189,-2706.09,0.00016986,2]
[333953121,1722647473199,-706.41,0.00016986,2]
[333953122,1722647473208,-1342.27,0.00016986,2]
[333953123,1722647473218,-2784.62,0.00016986,2]
[333953124,1722647473227,-500.0,0.00016986,2]
[333953125,1722647473237,-8035.91,0.00016986,2]
[333953126,1722647473247,-12931.03,0.00016986,2]
[333953127,1722647473257,-690.54,0.00016986,2]
[333953128,1722647473267,-4776.13,0.00016986,2]
[333953129,1722647473276,-1950.35,0.00016986,2]
[333953130,1722647473285,-1310.27,0.00016986,2]
[333953131,1722647473298,-991.47,0.00016986,2]
[333953132,1722647473308,-2444.16,0.00016986,2]
[333953133,1722647473318,-500.0,0.00016986,2]
[333953134,1722647473328,-2144.97,0.00016986,2]
[333953135,1722647473337,-1312.24,0.00016986,2]
[333953136,1722647473347,-4960.64,0.00016986,2]
[333953137,1722647473357,-528.41,0.00016986,2]
[333953138,1722647473367,-3303.75,0.00016986,2]
[333953139,1722647473377,-284.52493418,0.00016986,2]
[333953140,1722647473387,-1007.96,0.00016986,2]
[333953141,1722647473397,-2222.62,0.00016986,2]
[333953142,1722647473765,-2421.2,0.00016986,2]
[333953143,1722647473790,-500.0,0.00016986,2]
[333953144,1722647473807,-714.52,0.00016986,2]
[333953145,1722647473817,-500.0,0.00016986,2]
[333953146,1722647473827,-545.48,0.00016986,2]
[333953147,1722647473837,-1443.22,0.00016986,2]
[333953148,1722647473848,-4294.15,0.00016986,2]
[333953149,1722647473857,-500.0,0.00016986,2]
[333953150,1722647473868,-500.0,0.00016986,2]
[333953151,1722647473878,-863.0,0.00016986,2]
[333953152,1722647473890,-3002.26,0.00016986,2]
[333953153,1722647473900,-3178.14,0.00016986,2]
[333953154,1722647473910,-3916.79,0.00016986,2]
[333953155,1722647473920,-7498.38,0.00016986,2]
[333953156,1722647473930,-500.0,0.00016986,2]
[333953157,1722647473940,-2662.91,0.00016986,2]
[333953158,1722647473950,-500.0,0.00016986,2]
[333953159,1722647473960,-4979.38,0.00016986,2]
[333953160,1722647473970,-500.0,0.00016986,2]
[333953161,1722647473979,-770.51,0.00016986,2]
[333953162,1722647473989,-650.86,0.00016986,2]
[333953163,1722647473999,-1710.56,0.00016986,2]
[333953164,1722647474009,-4202.08,0.00016986,2]
[333953165,1722647474019,-500.0,0.00016986,2]
[333953166,1722647474029,-500.0,0.00016986,2]
[333953167,1722647474039,-537.58,0.00016986,2]
[333953168,1722647474055,-11553.1,0.00016986,2]
[333953169,1722647474066,-500.0,0.00016986,2]
[333953170,1722647474076,-1687.5,0.00016986,2]
[333953171,1722647474086,-500.0,0.00016986,2]
[333953172,1722647474095,-635.89,0.00016986,2]
[333953173,1722647474105,-1929.11,0.00016986,2]
[333953174,1722647474115,-500.0,0.00016986,2]
[333953175,1722647474124,-522.03,0.00016986,2]
[333953176,1722647474135,-2497.22,0.00016986,2]
[333953177,1722647474144,-500.0,0.00016986,2]
[333953178,1722647474154,-2027.2,0.00016986,2]
[333953179,1722647474165,-881.65,0.00016986,2]
[333953180,1722647474175,-2341.34,0.00016986,2]
[333953181,1722647474185,-4051.24,0.00016986,2]
[333953182,1722647474195,-4257.37,0.00016986,2]
[333953183,1722647474205,-2260.61,0.00016986,2]
[333953184,1722647474215,-2604.53,0.00016986,2]
[333953185,1722647474225,-500.0,0.00016986,2]
[333953186,1722647474235,-500.0,0.00016986,2]
[333953187,1722647474245,-500.0,0.00016986,2]
[333953188,1722647474255,-500.0,0.00016986,2]
[333953189,1722647474267,-3764.51,0.00016986,2]
[333953190,1722647474277,-500.0,0.00016986,2]
[333953191,1722647474288,-1183.84,0.00016986,2]
[333953192,1722647474303,-775.12,0.00016986,2]
[333953193,1722647474312,-4256.78,0.00016986,2]
[333953194,1722647474323,-6850.25,0.00016986,2]
[333953195,1722647474333,-500.0,0.00016986,2]
[333953196,1722647474343,-712.87,0.00016986,2]
[333953197,1722647474353,-528.64,0.00016986,2]
[333953198,1722647474362,-2405.07,0.00016986,2]
[333953199,1722647474371,-500.0,0.00016986,2]
[333953200,1722647474384,-500.0,0.00016986,2]
[333953201,1722647474395,-500.0,0.00016986,2]
[333953202,1722647474405,-500.0,0.00016986,2]
[333953203,1722647474415,-4268.22,0.00016986,2]
[333953204,1722647474425,-1977.73,0.00016986,2]
[333953205,1722647474435,-1003.23,0.00016986,2]
[333953206,1722647474446,-500.0,0.00016986,2]
[333953207,1722647474456,-897.29,0.00016986,2]
[333953208,1722647474466,-661.36,0.00016986,2]
[333953209,1722647474476,-500.0,0.00016986,2]
[333953210,1722647474486,-948.76,0.00016986,2]
[333953211,1722647474496,-16157.54,0.00016986,2]
[333953212,1722647474506,-5391.58,0.00016986,2]
[333953213,1722647474516,-2168.79,0.00016986,2]
[333953214,1722647474527,-2488.62,0.00016986,2]
[333953215,1722647474536,-500.0,0.00016986,2]
[333953216,1722647474553,-168.636349,0.00016986,2]
[333953217,1722647474563,-168.636349,0.00016986,2]
[333953218,1722647474572,-168.636349,0.00016986,2]
[333953219,1722647474583,-2879.82,0.00016986,2]
[333953220,1722647474593,-605.22,0.00016986,2]
[333953221,1722647474603,-500.0,0.00016986,2]
[333953222,1722647474612,-4443.01,0.00016986,2]
[333953223,1722647474622,-733.44,0.00016986,2]
[333953224,1722647474632,-168.636349,0.00016986,2]
[333953225,1722647474644,-168.636349,0.00016986,2]
[333953226,1722647474654,-168.636349,0.00016986,2]
[333953227,1722647474665,-500.0,0.00016986,2]
[333953228,1722647474676,-500.0,0.00016986,2]
[333953229,1722647474687,-4526.75,0.00016986,2]
[333953230,1722647474697,-500.0,0.00016986,2]
[333953231,1722647474707,-574.65,0.00016986,2]
[333953232,1722647474717,-5864.11,0.00016986,2]
[333953233,1722647474727,-500.0,0.00016986,2]
[333953234,1722647474736,-500.0,0.00016986,2]
[333953235,1722647474747,-7797.87,0.00016986,2]
[333953236,1722647474757,-10254.86,0.00016986,2]
[333953237,1722647474767,-502.67,0.00016986,2]
[333953238,1722647474777,-500.0,0.00016986,2]
[333953239,1722647474786,-500.0,0.00016986,2]
[333953240,1722647474801,-1223.56,0.00016986,2]
[333953241,1722647474810,-1345.82,0.00016986,2]
[333953242,1722647474820,-1646.99,0.00016986,2]
[333953243,1722647474830,-500.0,0.00016986,2]
[333953244,1722647474840,-1164.57,0.00016986,2]
[333953245,1722647474850,-3751.48,0.00016986,2]
[333953246,1722647474860,-500.0,0.00016986,2]
[333953247,1722647474871,-500.0,0.00016986,2]
[333953248,1722647474881,-500.0,0.00016986,2]
[333953249,1722647474892,-500.0,0.00016986,2]
[333953250,1722647474902,-846.6,0.00016986,2]
[333953251,1722647474912,-7520.55,0.00016986,2]
[333953252,1722647474922,-2355.95,0.00016986,2]
[333953253,1722647474932,-5285.33,0.00016986,2]
[333953254,1722647474942,-580.54,0.00016986,2]
[333953255,1722647474952,-500.0,0.00016986,2]
[333953256,1722647474963,-751.98,0.00016986,2]
[333953257,1722647474973,-2171.57,0.00016986,2]
[333953258,1722647474983,-697.61,0.00016986,2]
[333953259,1722647474993,-500.0,0.00016986,2]
[333953260,1722647475004,-9483.91,0.00016986,2]
[333953261,1722647475014,-2058.6,0.00016986,2]
[333953262,1722647475024,-739.97,0.00016986,2]
[333953263,1722647475034,-21689.53,0.00016986,2]
[333953264,1722647475050,-500.0,0.00016986,2]
[333953265,1722647475060,-700.22,0.00016986,2]
[333953266,1722647475071,-500.0,0.00016986,2]
[333953267,1722647475081,-2375.66,0.00016986,2]
[333953268,1722647475092,-3916.38,0.00016986,2]
[333953269,1722647475102,-675.95,0.00016986,2]
[333953270,1722647475113,-3906.64,0.00016986,2]
[333953271,1722647475123,-3567.08,0.00016986,2]
[333953272,1722647475133,-1358.74,0.00016986,2]
[333953273,1722647475144,-9646.96,0.00016986,2]
[333953274,1722647475153,-1096.79,0.00016986,2]
[333953275,1722647475163,-715.8,0.00016986,2]
[333953276,1722647475174,-1058.13,0.00016986,2]
[333953277,1722647475184,-850.93,0.00016986,2]
[333953278,1722647475193,-500.0,0.00016986,2]
[333953279,1722647475203,-5057.49,0.00016986,2]
[333953280,1722647475213,-2986.88,0.00016986,2]
[333953281,1722647475223,-1568.72,0.00016986,2]
[333953282,1722647475233,-2626.99,0.00016986,2]
[333953283,1722647475243,-4586.61,0.00016986,2]
[333953284,1722647475252,-1668.83,0.00016986,2]
[333953285,1722647475262,-3432.81,0.00016986,2]
[333953286,1722647475272,-778.01,0.00016986,2]
[333953287,1722647475282,-852.38,0.00016986,2]
[333953288,1722647475292,-1321.94,0.00016986,2]
[333953289,1722647475310,-635.66,0.00016986,2]
[333953290,1722647475320,-1745.67,0.00016986,2]
[333953291,1722647475330,-311.17352966,0.00016986,2]
[333953292,1722647475339,-500.0,0.00016986,2]
[333953293,1722647475349,-500.0,0.00016986,2]
[333953294,1722647475359,-1188.63,0.00016986,2]
[333953295,1722647475369,-500.0,0.00016986,2]
[333953296,1722647475379,-179.38,0.00016986,2]
[333953297,1722647475389,-534.38,0.00016986,2]
[333953298,1722647475398,-319.3,0.00016986,2]
[333953299,1722647475408,-508.27,0.00016986,2]
[333953300,1722647475419,-1191.0,0.00016986,2]
[333953301,1722647475429,-16259.94,0.00016986,2]
[333953302,1722647475439,-2383.99791829,0.00016999,2]
[333953303,1722647475449,-484.0,0.0001701,2]
[333953304,1722647475459,-152.0,0.00017058,9]
[333953305,1722647475469,-179.60686802,0.00017069,2]
[333953306,1722647475479,-500.0,0.000171,2]
[333953307,1722647475489,-500.0,0.000171,2]
[333953308,1722647475499,-500.0,0.000171,2]
[333953309,1722647475509,-500.0,0.000171,2]
[333953310,1722647475520,-500.0,0.000171,2]
[333953311,1722647475530,-500.0,0.000171,2]
[333953312,1722647475540,-500.0,0.000171,2]
[333953313,1722647475551,-500.0,0.000171,2]
[333953314,1722647475562,-500.0,0.000171,2]
[333953315,1722647475572,-500.0,0.000171,2]
[333953316,1722647475581,-500.0,0.000171,2]
[333953317,1722647475591,-500.0,0.000171,2]
[333953318,1722647475600,-500.0,0.000171,2]
[333953319,1722647475610,-500.0,0.000171,2]
[333953320,1722647475622,-500.0,0.000171,2]
[333953321,1722647475631,-500.0,0.000171,2]
[333953322,1722647475646,-500.0,0.000171,2]
[333953323,1722647475655,-500.0,0.000171,2]
[333953324,1722647475665,-500.0,0.000171,2]
[333953325,1722647475675,-500.0,0.000171,2]
[333953326,1722647475686,-644.26346236,0.000171,2]
[333953327,1722647475696,-500.0,0.000171,2]
[333953328,1722647475705,-500.0,0.000171,2]
[333953329,1722647475716,-500.0,0.000171,2]
[333953330,1722647475726,-500.0,0.000171,2]
[333953331,1722647475736,-500.0,0.000171,2]
[333953332,1722647475746,-500.0,0.000171,2]
[333953333,1722647475756,-500.0,0.000171,2]
[333953334,1722647475766,-500.0,0.000171,2]
[333953335,1722647475776,-500.0,0.000171,2]
[333953336,1722647475786,-500.0,0.000171,2]
[333953337,1722647475799,-500.0,0.000171,2]
[333953338,1722647475811,-500.0,0.000171,2]
[333953339,1722647475821,-500.0,0.000171,2]
[333953340,1722647475836,-500.0,0.000171,2]
[333953341,1722647475847,-500.0,0.000171,2]
[333953342,1722647475856,-500.0,0.000171,2]
[333953343,1722647475866,-500.0,0.000171,2]
[333953344,1722647475876,-500.0,0.000171,2]
[333953345,1722647475886,-500.0,0.000171,2]
[333953346,1722647475896,-500.0,0.000171,2]
[333953347,1722647475906,-500.0,0.000171,2]
[333953348,1722647475916,-500.0,0.000171,2]
[333953349,1722647475926,-500.0,0.000171,2]
[333953350,1722647475936,-500.0,0.000171,2]
[333953351,1722647475946,-500.0,0.000171,2]
[333953352,1722647475956,-500.0,0.000171,2]
[333953353,1722647475966,-500.0,0.000171,2]
[333953354,1722647475976,-500.0,0.000171,2]
[333953355,1722647475986,-500.0,0.000171,2]
[333953356,1722647475996,-500.0,0.000171,2]
[333953357,1722647476006,-500.0,0.000171,2]
[333953358,1722647476016,-500.0,0.000171,2]
[333953359,1722647476025,-500.0,0.000171,2]
[333953360,1722647476035,-500.0,0.000171,2]
[333953361,1722647476051,-500.0,0.000171,2]
[333953362,1722647476061,-500.0,0.000171,2]
[333953363,1722647476070,-500.0,0.000171,2]
[333953364,1722647476080,-500.0,0.000171,2]
[333953365,1722647476090,-581.26398964,0.000171,2]
[333953366,1722647476101,-1000.0,0.000171,2]
[333953367,1722647476111,-500.0,0.00017248,2]
[333953368,1722647476121,-800.0,0.00017248,2]
[333953369,1722647476131,-600.0,0.00017248,2]
[333953370,1722647476141,-18029.5479973,0.00017248,2]
[333953371,1722647476150,-5590.7871411,0.00017248,2]
[333953372,1722647476161,-11653.1394482,0.00017248,2]
[333953373,1722647476171,-76272.5381813,0.00017248,2]
[333953374,1722647476181,-461.75401607,0.00017256,2]
[333953375,1722647476192,-1755.31076962,0.00017257,2]
[333953376,1722647476202,-976.42,0.0001726,2]
[333953377,1722647476212,-500.0,0.0001726,2]
[333953378,1722647476222,-968.31,0.0001726,2]
[333953379,1722647476232,-500.0,0.0001726,2]
[333953380,1722647476242,-500.0,0.0001726,2]
[333953381,1722647476353,-500.0,0.0001726,2]
[333953382,1722647476363,-500.0,0.0001726,2]
[333953383,1722647476373,-963.68,0.0001726,2]
[333953384,1722647476383,-632.08,0.0001726,2]
[333953385,1722647476393,-500.0,0.0001726,2]
[333953386,1722647476404,-774.34,0.0001726,2]
[333953387,1722647476414,-737.8,0.0001726,2]
[333953388,1722647476424,-500.0,0.0001726,2]
[333953389,1722647476435,-500.0,0.0001726,2]
[333953390,1722647476445,-623.13,0.0001726,2]
[333953391,1722647476455,-500.0,0.0001726,2]
[333953392,1722647476465,-500.0,0.0001726,2]
[333953393,1722647476475,-500.0,0.0001726,2]
[333953394,1722647476486,-500.0,0.0001726,2]
[333953395,1722647476496,-1281.12,0.0001726,2]
[333953396,1722647476506,-521.68,0.0001726,2]
[333953397,1722647476516,-500.0,0.0001726,2]
[333953398,1722647476527,-1244.46,0.0001726,2]
[333953399,1722647476536,-500.0,0.0001726,2]
[333953400,1722647476552,-500.0,0.0001726,2]
[333953401,1722647476562,-670.13,0.0001726,2]
[333953402,1722647476571,-500.0,0.0001726,2]
[333953403,1722647476580,-500.0,0.0001726,2]
[333953404,1722647476589,-938.68,0.0001726,2]
[333953405,1722647476599,-767.99,0.0001726,2]
[333953406,1722647476608,-500.0,0.0001726,2]
[333953407,1722647476618,-1011.14,0.0001726,2]
[333953408,1722647476628,-816.64,0.0001726,2]
[333953409,1722647476639,-983.74,0.0001726,2]
[333953410,1722647476649,-500.0,0.0001726,2]
[333953411,1722647476658,-500.0,0.0001726,2]
[333953412,1722647476671,-500.0,0.0001726,2]
[333953413,1722647476681,-500.0,0.0001726,2]
[333953414,1722647476691,-494.11394201,0.0001726,2]
[333953415,1722647476700,-500.0,0.0001726,2]
[333953416,1722647476710,-579.71,0.0001726,2]
[333953417,1722647476720,-500.0,0.0001726,2]
[333953418,1722647476730,-652.88,0.0001726,2]
[333953419,1722647476739,-500.0,0.0001726,2]